bitfinex/quotes_SOLUSD_20250611
["timestamp","ask_amount","ask_price","bid_price","bid_amount"]
[1749648262553,22.56446531,166.99,166.97,0.28432314]
[1749648263145,8.8,166.99,166.97,0.28432314]
[1749648264150,8.8,166.98,166.96,0.28432314]
[1749648264963,8.8,166.98,166.96,14.04878845]
[1749648266562,8.8,166.98,166.95,0.28432314]
[1749648266947,8.8,166.98,166.97,0.28432314]
[1749648269678,8.8,166.98,166.97,14.04878845]
[1749648270181,39.76446531,167.02,166.97,14.04878845]
[1749648271451,39.76446531,167.02,166.97,0.28432314]
[1749648271653,39.76446531,167.02,166.97,14.04878845]
[1749648272167,13.76446531,167.01,166.97,0.28432314]
[1749648273673,26.0,167.02,166.53,140.0]
[1749648273674,26.0,166.97,166.86,4.64642792]
[1749648273864,13.76446531,166.95,166.87,18.64964886]
[1749648274185,8.8,166.96,166.87,43.90964886]
[1749648274359,22.56446531,166.96,166.92,0.28432314]
[1749648274676,8.8,166.95,166.92,0.28432314]
[1749648275469,8.8,166.95,166.92,14.04878845]
[1749648276458,8.8,166.95,166.94,14.04878845]
[1749648277188,8.8,166.95,166.94,0.28432314]
[1749648278180,8.8,166.95,166.94,14.04878845]
[1749648278567,8.8,166.99,166.94,40.19095002]
[1749648278767,8.8,167.02,166.98,14.04878845]
[1749648279152,22.56446531,167.02,166.98,0.28432314]
[1749648281071,22.56446531,167.02,166.99,0.28432314]
[1749648281072,8.8,167.02,166.99,0.28432314]
[1749648283165,22.56446531,167.02,166.99,0.28432314]
[1749648286295,13.76446531,167.0,166.92,1.5223]
[1749648286591,13.76446531,166.98,166.94,26.0]
[1749648286792,8.8,166.97,166.95,0.28432314]
[1749648286996,8.8,166.97,166.95,14.04878845]
[1749648288781,8.8,167.02,166.96,40.19095002]
[1749648288967,22.56446531,167.02,166.97,14.04878845]
[1749648289291,22.56446531,167.01,166.97,0.28432314]
[1749648289585,13.76446531,167.0,166.97,0.28432314]
[1749648289895,22.56446531,167.01,166.97,0.28432314]
[1749648290073,13.76446531,166.99,166.97,0.28432314]
[1749648290273,13.76446531,166.98,166.97,0.14216157]
[1749648290672,22.56446531,166.99,166.97,0.14216157]
[1749648290987,22.56446531,166.99,166.94,14.04878845]
[1749648294371,13.76446531,166.96,166.94,0.14216157]
[1749648294567,13.76446531,166.96,166.89,3.11897715]
[1749648294568,13.76446531,166.96,166.9,26.0]
[1749648294794,8.8,166.95,166.92,13.76446531]
[1749648294986,8.8,166.95,166.93,0.28432314]
[1749648295503,8.8,166.95,166.93,14.04878845]
[1749648296400,8.8,166.95,166.94,13.76446531]
[1749648296603,8.8,166.98,166.95,0.28432314]
[1749648296783,8.8,166.98,166.95,14.04878845]
[1749648297578,8.8,166.98,166.95,0.42648471]
[1749648297783,8.8,166.98,166.95,14.19095002]
[1749648298513,8.8,166.98,166.95,0.28432314]
[1749648298689,22.56446531,166.98,166.95,0.28432314]
[1749648298880,13.76446531,166.97,166.94,0.28432314]
[1749648299895,8.8,166.98,166.94,0.28432314]
[1749648300096,13.76446531,166.97,166.94,0.28432314]
[1749648300324,13.76446531,166.96,166.94,0.28432314]
[1749648300485,13.76446531,166.95,166.94,0.28432314]
[1749648300685,13.76446531,166.95,166.9,39.76446531]
[1749648300910,8.8,166.94,166.9,13.76446531]
[1749648301221,8.8,166.94,166.91,13.90662688]
[1749648301714,8.8,166.94,166.92,0.14216157]
[1749648302509,8.8,166.94,166.92,13.90662688]
[1749648302824,8.8,166.94,166.93,14.19095002]
[1749648305407,8.8,166.94,166.93,0.28432314]
[1749648305610,8.8,166.94,166.93,14.04878845]
[1749648305809,8.8,166.94,166.93,0.28432314]
[1749648306446,8.8,166.94,166.93,14.19095002]
[1749648306918,13.76446531,166.94,166.93,0.14216157]
[1749648307121,13.76446531,166.94,166.88,39.00446531]
[1749648307437,13.76446531,166.93,166.87,1.5909]
[1749648307617,13.76446531,166.94,166.89,13.76446531]
[1749648307933,1.5456,166.97,166.88,51.24]
[1749648307934,13.76446531,166.95,166.9,14.04878845]
[1749648308235,13.76446531,166.94,166.9,0.28432314]
[1749648308440,1.5456,166.97,166.94,0.14216157]
[1749648308615,15.31006531,166.97,166.93,0.14216157]
[1749648309050,13.76446531,166.94,166.93,0.14216157]
[1749648310636,13.76446531,166.95,166.93,0.14216157]
[1749648310941,13.76446531,166.95,166.92,0.28432314]
[1749648312147,13.76446531,166.94,166.92,0.14216157]
[1749648312350,1.5456,166.97,166.92,0.14216157]
[1749648312351,13.76446531,166.93,166.92,0.14216157]
[1749648312925,8.8,166.92,166.9,0.14216157]
[1749648313234,13.76446531,166.91,166.88,0.14216157]
[1749648313448,8.8,166.9,166.88,0.28432314]
[1749648313817,8.8,166.9,166.87,26.0]
[1749648314216,8.8,166.9,166.88,0.28432314]
[1749648314217,22.56446531,166.9,166.88,0.28432314]
[1749648314632,8.8,166.9,166.88,0.28432314]
[1749648316224,8.8,166.9,166.88,14.19095002]
[1749648316745,8.8,166.9,166.89,40.19095002]
[1749648316961,8.8,166.9,166.89,26.42648471]
[1749648317165,8.8,166.9,166.89,40.19095002]
[1749648318866,8.8,166.9,166.89,51.66648471]
[1749648319269,8.8,166.9,166.89,25.66648471]
[1749648319474,13.76446531,166.92,166.9,0.28432314]
[1749648319656,13.76446531,166.93,166.9,0.28432314]
[1749648320550,13.76446531,166.92,166.9,0.28432314]
[1749648320958,8.8,166.91,166.9,0.28432314]
[1749648321645,8.8,166.91,166.88,0.28432314]
[1749648322762,8.8,166.91,166.9,0.28432314]
[1749648323473,8.8,166.91,166.9,14.19095002]
[1749648323775,8.8,166.95,166.9,14.19095002]
[1749648324070,13.76446531,166.96,166.9,14.19095002]
[1749648324856,13.76446531,166.95,166.9,0.42648471]
[1749648325847,8.8,166.94,166.9,0.42648471]
[1749648326454,13.76446531,166.93,166.9,0.28432314]
[1749648326765,13.76446531,166.93,166.88,13.76446531]
[1749648326766,8.8,166.94,166.88,13.76446531]
[1749648326954,13.76446531,166.93,166.88,13.76446531]
[1749648327276,13.76446531,166.93,166.89,0.14216157]
[1749648327651,13.76446531,166.93,166.87,51.36216157]
[1749648327652,13.76446531,166.91,166.86,13.76446531]
[1749648327966,13.76446531,166.87,166.8,5.72]
[1749648328207,13.76446531,166.87,166.82,13.76446531]
[1749648328476,13.76446531,166.87,166.83,0.28432314]
[1749648329264,13.76446531,166.87,166.82,13.76446531]
[1749648329461,13.76446531,166.87,166.83,0.28432314]
[1749648330576,13.76446531,166.88,166.83,0.28432314]
[1749648331572,13.76446531,166.88,166.83,14.04878845]
[1749648331989,13.76446531,166.87,166.81,25.36216157]
[1749648332161,13.76446531,166.87,166.82,14.04878845]
[1749648332364,13.76446531,166.86,166.82,0.28432314]
[1749648332755,13.76446531,166.84,166.79,13.76446531]
[1749648332953,13.76446531,166.84,166.77,18.64964886]
[1749648332954,22.56446531,166.83,166.77,3.12216695]
[1749648333150,22.56446531,166.82,166.77,3.12216695]
[1749648333377,22.56446531,166.82,166.77,13.76446531]
[1749648333577,8.8,166.82,166.79,0.28432314]
[1749648334078,8.8,166.82,166.78,13.76446531]
[1749648334388,8.8,166.82,166.79,14.04878845]
[1749648334678,8.8,166.82,166.81,0.28432314]
[1749648334877,29.21656531,166.9,166.82,0.14216157]
[1749648335087,1.521,166.91,166.88,0.28432314]
[1749648335257,13.76446531,166.93,166.88,13.76446531]
[1749648335463,13.76446531,166.94,166.9,0.28432314]
[1749648336061,21.39836531,166.95,166.9,14.04878845]
[1749648336470,21.39836531,166.95,166.91,13.76446531]
[1749648336471,7.6339,166.95,166.91,13.76446531]
[1749648337077,6.0815,166.95,166.92,0.28432314]
[1749648339873,6.0815,166.95,166.9,0.42648471]
[1749648340186,13.76446531,166.97,166.92,14.04878845]
[1749648341297,26.0,166.98,166.92,14.04878845]
[1749648341474,13.76446531,166.98,166.94,0.28432314]
[1749648342762,1.5088,166.99,166.94,0.28432314]
[1749648342985,13.76446531,166.98,166.94,0.28432314]
[1749648343984,1.5088,166.99,166.94,0.28432314]
[1749648344188,13.76446531,166.98,166.94,0.28432314]
[1749648345794,13.76446531,166.98,166.91,0.28432314]
[1749648345992,15.27326531,166.99,166.94,14.04878845]
[1749648346196,13.76446531,166.98,166.94,0.28432314]
[1749648346382,13.76446531,166.96,166.94,0.28432314]
[1749648346701,13.76446531,166.97,166.94,0.28432314]
[1749648346993,22.56446531,166.96,166.94,0.14216157]
[1749648347299,13.76446531,166.95,166.94,0.14216157]
[1749648347498,1.5088,166.99,166.94,0.14216157]
[1749648347691,13.76446531,166.95,166.94,0.14216157]
[1749648347876,13.76446531,166.95,166.91,0.14216157]
[1749648348074,1.5088,166.99,166.93,13.76446531]
[1749648348396,1.5088,166.99,166.95,13.76446531]
[1749648348775,15.27326531,166.99,166.94,14.04878845]
[1749648349079,13.76446531,166.97,166.94,0.28432314]
[1749648349472,1.5088,166.99,166.94,0.28432314]
[1749648349473,13.76446531,166.98,166.94,0.28432314]
[1749648349902,13.76446531,166.99,166.94,14.04878845]
[1749648350775,13.76446531,166.99,166.94,0.28432314]
[1749648350983,13.76446531,166.95,166.91,0.28432314]
[1749648351181,13.76446531,166.95,166.91,0.14216157]
[1749648351584,13.76446531,166.96,166.91,0.28432314]
[1749648351785,22.56446531,166.98,166.94,0.28432314]
[1749648352885,13.76446531,166.97,166.94,0.28432314]
[1749648355311,8.8,166.98,166.93,0.28432314]
[1749648355478,22.56446531,166.98,166.93,0.28432314]
[1749648355883,8.8,166.97,166.93,0.28432314]
[1749648357690,8.8,166.97,166.94,0.28432314]
[1749648358412,8.8,166.97,166.94,14.04878845]
[1749648359094,8.8,166.97,166.94,0.28432314]
[1749648360492,8.8,166.97,166.95,0.28432314]
[1749648360687,8.8,166.96,166.95,0.28432314]
[1749648362691,8.8,166.96,166.94,0.28432314]
[1749648363016,8.8,166.96,166.94,14.04878845]
[1749648364594,8.8,166.96,166.94,0.28432314]
[1749648364895,8.8,166.95,166.94,14.04878845]
[1749648365097,8.8,166.95,166.94,14.19095002]
[1749648365506,8.8,166.95,166.94,58.02059888]
[1749648365735,151.0,167.07,166.99,44.64964886]
[1749648365905,4.3,167.06,167.03,0.28432314]
[1749648366213,18.06446531,167.06,167.03,0.28432314]
[1749648366424,4.3,167.06,167.03,0.28432314]
[1749648366613,18.06446531,167.06,167.03,0.28432314]
[1749648366812,13.76446531,167.05,167.03,0.28432314]
[1749648367009,13.76446531,167.04,167.03,0.28432314]
[1749648367315,4.3,167.03,166.99,0.28432314]
[1749648367496,18.06446531,167.03,166.99,0.28432314]
[1749648367702,13.76446531,167.0,166.99,0.14216157]
[1749648367893,18.06446531,167.0,166.94,38.94446531]
[1749648368100,18.06446531,167.0,166.95,13.76446531]
[1749648368296,18.06446531,167.0,166.94,25.18]
[1749648368297,4.3,167.0,166.98,0.28432314]
[1749648368602,13.76446531,167.02,166.99,0.28432314]
[1749648370894,13.76446531,167.02,166.98,0.28432314]
[1749648372329,4.3,167.03,166.98,0.28432314]
[1749648372522,4.3,167.03,167.0,13.76446531]
[1749648372715,4.3,167.03,167.01,0.28432314]
[1749648372898,4.3,167.03,167.01,14.04878845]
[1749648373398,4.3,167.03,167.01,0.28432314]
[1749648374200,13.76446531,167.05,167.01,0.28432314]
[1749648374400,4.3,167.06,167.01,0.28432314]
[1749648374401,13.76446531,167.04,167.01,0.28432314]
[1749648374631,13.76446531,167.04,167.0,0.28432314]
[1749648375530,13.76446531,167.03,167.0,0.28432314]
[1749648376606,13.76446531,167.04,166.99,14.04878845]
[1749648376802,18.06446531,167.06,167.01,0.28432314]
[1749648377016,4.3,167.06,167.02,0.28432314]
[1749648377319,4.3,167.06,167.02,14.04878845]
[1749648377520,4.3,167.06,167.02,0.28432314]
[1749648377724,4.3,167.06,167.02,14.04878845]
[1749648378125,166.47216531,167.07,167.04,0.28432314]
[1749648378126,4.3,167.05,167.04,0.28432314]
[1749648378425,4.3,167.05,167.04,14.04878845]
[1749648379309,4.3,167.05,167.04,14.19095002]
[1749648379513,13.76446531,167.1,167.04,14.19095002]
[1749648379750,4.3,167.09,167.06,0.28432314]
[1749648380203,18.06446531,167.09,167.06,0.28432314]
[1749648381511,4.3,167.09,167.06,0.28432314]
[1749648381718,18.06446531,167.09,167.06,0.28432314]
[1749648383227,18.06446531,167.09,167.05,0.28432314]
[1749648384135,4.3,167.09,167.05,0.28432314]
[1749648384308,4.3,167.09,167.05,14.04878845]
[1749648385127,4.3,167.08,167.05,14.04878845]
[1749648386033,4.3,167.08,167.02,0.14216157]
[1749648386228,4.3,167.08,167.06,0.28432314]
[1749648386630,4.3,167.07,167.06,0.28432314]
[1749648387655,146.7,167.14,167.08,0.28432314]
[1749648387827,4.3,167.15,167.13,0.28432314]
[1749648390333,4.3,167.15,167.14,0.28432314]
[1749648391431,39.76446531,167.18,167.14,0.28432314]
[1749648392856,13.76446531,167.17,167.13,0.28432314]
[1749648393345,18.64964886,167.21,167.17,0.28432314]
[1749648393346,4.3,167.19,167.17,0.28432314]
[1749648395126,13.76446531,167.18,167.17,0.28432314]
[1749648395327,30.3,167.19,167.13,0.28432314]
[1749648395534,18.06446531,167.18,167.13,14.04878845]
[1749648395773,18.06446531,167.18,167.13,13.90662688]
[1749648395952,18.06446531,167.18,167.14,0.14216157]
[1749648397341,4.3,167.18,167.15,0.14216157]
[1749648397727,4.3,167.18,167.16,0.14216157]
[1749648398339,4.3,167.17,167.16,0.14216157]
[1749648399830,4.3,167.17,167.13,0.28432314]
[1749648400938,4.3,167.17,167.13,0.14216157]
[1749648401445,4.3,167.17,167.13,14.04878845]
[1749648402845,4.3,167.17,167.15,0.28432314]
[1749648403351,4.3,167.16,167.15,0.28432314]
[1749648404667,4.3,167.15,167.07,1.67986157]
[1749648404865,18.06446531,167.15,167.09,13.76446531]
[1749648405035,13.76446531,167.14,167.08,0.28432314]
[1749648405244,13.76446531,167.13,167.08,0.28432314]
[1749648405443,4.3,167.12,167.07,13.76446531]
[1749648405748,4.3,167.11,167.04,25.12]
[1749648405942,4.3,167.11,167.08,0.28432314]
[1749648406975,4.3,167.11,167.08,0.14216157]
[1749648407135,4.3,167.11,167.08,0.28432314]
[1749648408056,13.76446531,167.12,167.05,0.28432314]
[1749648408057,4.3,167.1,167.05,0.28432314]
[1749648408356,18.06446531,167.1,167.05,14.04878845]
[1749648409767,4.3,167.1,167.06,13.76446531]
[1749648410265,4.3,167.1,167.03,0.42648471]
[1749648410568,4.3,167.09,167.07,0.28432314]
[1749648410868,4.3,167.08,167.07,0.28432314]
[1749648411073,4.3,167.08,167.07,14.19095002]
[1749648411440,4.3,167.08,167.07,39.31095002]
[1749648411871,4.3,167.14,167.08,0.14216157]
[1749648412468,4.3,167.14,167.12,0.28432314]
[1749648412647,146.7,167.15,167.12,0.28432314]
[1749648412648,4.3,167.13,167.12,0.28432314]
[1749648412844,4.3,167.13,167.07,25.12]
[1749648413053,4.3,167.12,167.09,0.28432314]
[1749648413662,4.3,167.12,167.1,13.76446531]
[1749648415383,4.3,167.12,167.08,0.42648471]
[1749648415670,4.3,167.12,167.11,0.28432314]
[1749648415874,13.76446531,167.13,167.11,0.28432314]
[1749648416050,13.76446531,167.12,167.07,13.76446531]
[1749648416251,4.3,167.11,167.07,13.76446531]
[1749648416450,4.3,167.11,167.08,0.28432314]
[1749648416648,4.3,167.11,167.08,13.90662688]
[1749648416970,4.3,167.11,167.1,0.14216157]
[1749648417859,13.56446531,167.14,167.1,0.14216157]
[1749648418171,160.46446531,167.15,167.11,0.28432314]
[1749648418354,146.7,167.15,167.11,0.28432314]
[1749648419051,146.7,167.15,167.11,14.04878845]
[1749648419251,146.7,167.15,167.11,0.28432314]
[1749648420263,1.5493,167.17,167.13,14.04878845]
[1749648420477,13.76446531,167.16,167.14,0.28432314]
[1749648420657,26.0,167.16,167.1,0.28432314]
[1749648420852,13.76446531,167.14,167.1,0.28432314]
[1749648421072,13.76446531,167.11,167.02,1.5241]
[1749648421370,32.1401,167.13,167.04,13.76446531]
[1749648421371,18.64964886,167.12,167.04,13.76446531]
[1749648421672,13.76446531,167.1,167.05,13.76446531]
[1749648421877,13.76446531,167.1,167.06,0.14216157]
[1749648422680,13.76446531,167.11,167.06,13.90662688]
[1749648422870,13.76446531,167.12,167.06,13.90662688]
[1749648423071,13.76446531,167.1,167.07,0.14216157]
[1749648423771,13.76446531,167.09,167.06,0.14216157]
[1749648423975,13.76446531,167.09,167.05,0.14216157]
[1749648424273,13.76446531,167.09,167.04,26.0]
[1749648424478,13.76446531,167.09,167.05,0.14216157]
[1749648425181,13.76446531,167.09,167.05,0.28432314]
[1749648425682,13.76446531,167.08,167.05,0.28432314]
[1749648425983,13.76446531,167.08,167.07,0.28432314]
[1749648426183,13.76446531,167.08,167.07,4.69820879]
[1749648426382,13.76446531,167.1,167.07,4.69820879]
[1749648426572,13.76446531,167.1,167.08,4.41388565]
[1749648426767,13.76446531,167.1,167.09,4.41486338]
[1749648427087,13.76446531,167.1,167.09,4.69918652]
[1749648427290,1.54,167.15,167.1,0.28432314]
[1749648427585,1.54,167.15,167.08,13.76446531]
[1749648427586,13.76446531,167.13,167.08,13.76446531]
[1749648427755,13.76446531,167.1,167.09,0.28432314]
[1749648428090,13.76446531,167.1,167.09,4.69973829]
[1749648428091,39.76446531,167.1,167.09,4.69973829]
[1749648428258,39.76446531,167.1,167.09,0.28432314]
[1749648428465,39.76446531,167.1,167.09,4.69876082]
[1749648428759,39.76446531,167.1,167.09,4.69912793]
[1749648428954,39.76446531,167.1,167.09,4.69966725]
[1749648429678,13.76446531,167.1,167.09,4.69966725]
[1749648429885,13.76446531,167.1,167.09,4.70020817]
[1749648430053,13.76446531,167.1,167.09,4.70017653]
[1749648430257,13.76446531,167.1,167.09,4.41585339]
[1749648430458,13.76446531,167.1,167.09,4.41629369]
[1749648430660,19.74841768,167.12,167.09,4.41726008]
[1749648430876,13.76446531,167.1,167.06,0.14216157]
[1749648431081,13.76446531,167.07,167.06,0.14216157]
[1749648431281,9.27933419,167.07,167.06,4.70183365]
[1749648431475,9.27933419,167.07,166.99,3.11665568]
[1749648431778,13.76446531,167.04,167.0,4.42033016]
[1749648431977,13.76446531,167.05,167.01,4.42014386]
[1749648432182,13.76446531,167.05,167.02,4.70394654]
[1749648432394,13.76446531,167.05,166.99,26.14216157]
[1749648432395,13.76446531,167.04,167.03,4.4196234]
[1749648432677,13.76446531,167.04,167.03,4.42127919]
[1749648432984,7.18520187,167.08,167.03,4.70670219]
[1749648433182,1.2,167.07,167.04,4.42236303]
[1749648433367,13.76446531,167.05,166.99,26.0]
[1749648433571,13.76446531,167.03,167.0,4.70640629]
[1749648433879,1.2,167.02,167.01,4.42213591]
[1749648434084,13.76446531,167.02,167.01,4.42213591]
[1749648434296,26.16731027,167.04,167.01,4.42213591]
[1749648434496,26.16731027,167.04,166.95,0.28432314]
[1749648434662,13.76446531,166.99,166.96,4.42360577]
[1749648434860,14.96446531,166.98,166.93,13.76446531]
[1749648435283,13.76446531,166.98,166.94,26.28432314]
[1749648435494,1.6577,167.02,166.94,0.28432314]
[1749648435678,13.76446531,166.98,166.93,13.76446531]
[1749648435869,13.76446531,166.98,166.94,26.0]
[1749648436272,1.6577,167.02,166.95,0.14216157]
[1749648436472,13.76446531,166.97,166.95,0.14216157]
[1749648437066,1.2,166.96,166.95,0.14216157]
[1749648437292,1.2,166.95,166.88,4.68266789]
[1749648437471,13.76446531,166.92,166.88,1.5626]
[1749648437871,13.76446531,166.92,166.89,0.28432314]
[1749648438075,13.76446531,166.92,166.87,13.76446531]
[1749648438290,13.76446531,166.91,166.86,13.76446531]
[1749648438483,13.76446531,166.9,166.85,1.5626]
[1749648438681,13.76446531,166.86,166.81,16.88580034]
[1749648438997,13.76446531,166.85,166.81,13.76446531]
[1749648439170,13.76446531,166.86,166.81,13.76446531]
[1749648439372,22.97066121,166.86,166.81,22.97066121]
[1749648439570,0.9,166.89,166.81,22.97066121]
[1749648439571,0.9,166.89,166.81,48.97066121]
[1749648439893,22.97066121,166.86,166.81,48.97066121]
[1749648440467,22.97066121,166.86,166.82,0.42648471]
[1749648440772,22.97066121,166.86,166.83,26.0]
[1749648441167,22.97066121,166.86,166.84,0.28432314]
[1749648441368,0.9,166.89,166.84,0.28432314]
[1749648441568,22.97066121,166.87,166.84,0.28432314]
[1749648443090,0.9,166.89,166.87,0.28432314]
[1749648443269,22.97066121,166.92,166.89,0.28432314]
[1749648444067,0.9,166.93,166.89,0.28432314]
[1749648444401,0.9,166.92,166.89,0.42648471]
[1749648445796,0.9,166.92,166.9,0.28432314]
[1749648446506,0.9,166.92,166.9,23.39714592]
[1749648446676,0.9,166.98,166.93,0.28432314]
[1749648446878,23.87066121,166.98,166.94,0.14216157]
[1749648447080,22.97066121,166.96,166.93,0.28432314]
[1749648447687,0.9,166.98,166.93,0.28432314]
[1749648448196,22.97066121,166.97,166.93,23.25498435]
[1749648448376,23.87066121,166.98,166.93,23.25498435]
[1749648448703,0.9,166.98,166.95,0.28432314]
[1749648448913,0.9,166.98,166.97,0.28432314]
[1749648449676,22.97066121,167.01,166.97,0.42648471]
[1749648449880,22.97066121,166.98,166.97,0.28432314]
[1749648450793,26.0,167.02,166.97,0.28432314]
[1749648451115,22.97066121,166.98,166.95,0.28432314]
[1749648451280,26.9,167.04,166.97,0.28432314]
[1749648451894,26.0,167.0,166.88,1.6528]
[1749648452101,26.9,166.99,166.89,25.12]
[1749648452282,26.9,166.99,166.9,0.42648471]
[1749648452489,22.97066121,166.91,166.89,51.12]
[1749648452789,22.97066121,166.9,166.89,70.19613357]
[1749648453170,22.97066121,166.91,166.9,0.14216157]
[1749648453506,22.97066121,166.91,166.9,0.42648471]
[1749648453979,0.9,166.99,166.9,26.42648471]
[1749648454303,22.97066121,166.92,166.9,26.42648471]
[1749648455005,0.9,166.98,166.9,26.42648471]
[1749648455207,0.9,166.97,166.9,26.42648471]
[1749648455382,22.97066121,166.91,166.9,26.42648471]
[1749648456405,0.9,166.96,166.9,26.42648471]
[1749648456571,0.9,166.95,166.9,45.07613357]
[1749648456775,146.7,167.01,166.92,0.42648471]
[1749648456776,22.97066121,166.93,166.92,0.42648471]
[1749648459182,23.87066121,167.0,166.92,0.42648471]
[1749648459520,22.97066121,166.93,166.92,0.42648471]
[1749648459719,45.94132242,166.93,166.86,18.64964886]
[1749648459888,22.97066121,166.87,166.86,18.64964886]
[1749648460095,22.97066121,166.87,166.86,69.76964886]
[1749648460289,22.97066121,166.87,166.84,7.64287033]
[1749648460597,22.97066121,166.85,166.82,5.99418401]
[1749648460795,22.97066121,166.9,166.83,18.64964886]
[1749648461002,22.97066121,166.9,166.84,25.12]
[1749648461198,22.97066121,166.9,166.85,0.42648471]
[1749648461590,22.97066121,166.9,166.84,25.12]
[1749648461991,22.97066121,166.85,166.84,25.26216157]
[1749648462409,22.97066121,166.85,166.84,25.54648471]
[1749648463214,22.97066121,166.9,166.85,0.28432314]
[1749648463523,22.97066121,166.86,166.85,0.28432314]
[1749648464108,22.97066121,166.87,166.85,0.28432314]
[1749648465829,0.9,166.94,166.85,25.0694825]
[1749648466008,23.87066121,166.93,166.89,0.28432314]
[1749648466318,0.9,166.92,166.9,0.14216157]
[1749648466898,23.87066121,166.92,166.89,25.40432314]
[1749648467859,0.9,166.92,166.89,25.40432314]
[1749648468036,0.9,166.92,166.9,0.14216157]
[1749648469760,0.9,166.92,166.91,26.42648471]
[1749648470045,0.9,166.92,166.91,26.28432314]
[1749648470257,23.87066121,166.92,166.91,0.28432314]
[1749648470740,23.87066121,166.92,166.91,0.14216157]
[1749648471044,23.87066121,166.92,141.2,50.0]
[1749648471045,0.9,166.91,166.8,7.8863]
[1749648471243,23.87066121,166.9,166.84,22.97066121]
[1749648471449,23.87066121,166.9,166.85,48.97066121]
[1749648471629,0.9,166.89,166.86,0.14216157]
[1749648472155,22.97066121,166.87,166.84,25.12]
[1749648472331,0.9,166.86,166.85,0.28432314]
[1749648473237,0.9,166.86,166.84,48.09066121]
[1749648473447,0.9,166.86,166.85,0.14216157]
[1749648473629,0.9,166.86,166.85,0.28432314]
[1749648474636,0.9,166.86,166.85,0.42648471]
[1749648474832,0.9,166.86,166.85,23.39714592]
[1749648475935,0.9,166.86,166.85,0.42648471]
[1749648476133,0.9,166.86,166.85,23.39714592]
[1749648476440,22.97066121,166.95,166.87,0.42648471]
[1749648476631,0.9,166.94,166.9,0.14216157]
[1749648477256,23.87066121,166.94,166.9,0.14216157]
[1749648477555,22.97066121,166.93,166.89,0.28432314]
[1749648478058,22.97066121,166.92,166.89,0.28432314]
[1749648480265,22.97066121,166.9,166.89,0.28432314]
[1749648480443,0.9,166.89,166.8,1.5246]
[1749648480638,45.94132242,166.9,166.79,25.12]
[1749648480639,22.97066121,166.83,166.79,25.12]
[1749648480870,1.599,166.87,166.79,51.12]
[1749648481046,22.97066121,166.83,166.79,51.12]
[1749648481252,22.97066121,166.82,166.77,3.12212273]
[1749648481453,22.97066121,166.82,166.78,25.12]
[1749648481838,22.97066121,166.83,166.78,25.12]
[1749648482473,22.97066121,166.82,166.78,25.12]
[1749648482781,22.97066121,166.82,166.79,0.42648471]
[1749648483158,7.2324,166.86,166.75,3.17854269]
[1749648483159,22.97066121,166.8,166.75,3.17854269]
[1749648483465,7.2324,166.86,166.75,0.05616678]
[1749648483466,22.97066121,166.79,166.75,0.05616678]
[1749648483677,22.97066121,166.79,166.75,25.17616678]
[1749648483853,22.97066121,166.77,166.75,0.05616678]
[1749648484057,22.97066121,166.76,166.75,0.05616678]
[1749648485680,6.5443,166.78,166.75,0.05616678]
[1749648485860,22.97066121,166.77,166.75,0.05616678]
[1749648486558,0.9,166.79,166.75,0.05616678]
[1749648486860,22.97066121,166.78,166.75,0.05616678]
[1749648487560,23.87066121,166.79,166.75,0.05616678]
[1749648487953,22.97066121,166.78,166.75,0.05616678]
[1749648488387,23.87066121,166.79,166.75,0.05616678]
[1749648488584,0.9,166.79,166.75,0.05616678]
[1749648488751,22.97066121,166.78,166.75,0.05616678]
[1749648488952,0.9,166.78,166.75,0.05616678]
[1749648489169,22.97066121,166.77,166.75,0.05616678]
[1749648489998,0.9,166.78,166.75,0.05616678]
[1749648489999,23.87066121,166.78,166.75,0.05616678]
[1749648491087,0.9,166.78,166.75,0.05616678]
[1749648491603,23.87066121,166.78,166.75,0.05616678]
[1749648493771,0.9,166.78,166.75,0.05616678]
[1749648493966,0.9,166.78,166.76,0.42648471]
[1749648494273,0.9,166.78,166.75,23.02682799]
[1749648494274,0.9,166.78,166.77,23.39714592]
[1749648494668,0.9,166.78,166.77,74.71714592]
[1749648497202,6.481,166.87,166.81,0.42648471]
[1749648497422,22.97066121,166.86,166.81,23.39714592]
[1749648498075,6.481,166.87,166.83,0.28432314]
[1749648498278,29.45166121,166.87,166.83,0.28432314]
[1749648498509,6.481,166.87,166.83,0.28432314]